Cogmind - Beta 13 @@@ ROGUE MODE // 2024.04.28 @ 00:37:15 Player: Azken Zutik Result: Destroyed by G-34 Mercenary with Small Laser Performance ------------- Evolutions (0) 0 Regions Visited (4) 800 Robots Destroyed (63) 315 Value Destroyed (968) 968 Prototype IDs (5) 100 Alien Tech Used (0) 0 Bonus (247) 247 TOTAL SCORE: 2430 Bonus ------- High Alert Combat Kills 8 Aligned with FarCom 300 Friendly Fire -61 Cogmind --------- Core Integrity 0/250 Matter 294/300 Energy 94/100 System Corruption 15% Temperature Cool (6) Movement Walking (260) Ox2 Location -9/Mines Parts ------- > --- POWER (1) -------- (None) > --- PROPULSION (2) --- Advanced Myomer Leg > --- UTILITY (2) ------ Huge Storage Unit > --- WEAPON (2) ------- (None) > --- INVENTORY (25) --- Light Treads Experimental Heat Sink Medium Matter Pod (100) Medium Matter Pod (49) Medium Matter Pod (0) Large Matter Pod (67) Large Matter Pod (0) Compact Matter Pod (0) Machine Analyzer Transport Network Coupler Skeleton Box PSU Rigger AS-neutralizer No. 17b Datajack Peak State ------------ > --- POWER ------------ Ion Engine > --- PROPULSION ------- Light Treads Advanced Myomer Leg > --- UTILITY ---------- Experimental Heat Sink Huge Storage Unit > --- WEAPON ----------- Grenade Launcher Hammer > --- INVENTORY -------- Light Treads Large Matter Pod Large Matter Pod Compact Matter Pod Machine Analyzer Transport Network Coupler Skeleton Box PSU Rigger AS-neutralizer No. 17b Light Assault Rifle Datajack [Rating: 23] Favorites ----------- Power Ion Engine Engine Ion Engine Propulsion Light Treads Treads Light Treads Leg Advanced Myomer Leg Wheel Compact Wheel Utility Huge Storage Unit Device Seismic Detector Storage Huge Storage Unit Weapon Light Assault Rifle Energy Gun EM Pulse Gun Ballistic Gun Light Assault Rifle Ballistic Cannon Flak Cannon Launcher Grenade Launcher Special Weapon Mining Laser Impact Weapon Hammer Build | -11 -10 -10 -10 -9 ------- Run | Yrd Mat Min Exi Min Slots Evolved . | . . . . . Power . | . . . . . Propulsion . | . . . . . Utility . | . . . . . Weapon . | . . . . . Parts Attached 68 | 2 19 25 21 1 Power 3 | . 1 2 . . Engine 3 | . 1 2 . . Core . | . . . . . Reactor . | . . . . . Propulsion 19 | 2 6 7 4 . Treads 12 | 2 3 4 3 . Leg 1 | . . . 1 . Wheel 6 | . 3 3 . . Hover . | . . . . . Flight . | . . . . . Utility 12 | . 4 3 5 . Device 10 | . 3 3 4 . Storage 2 | . 1 . 1 . Processor . | . . . . . Hackware . | . . . . . Protection . | . . . . . Artifact . | . . . . . Weapon 34 | . 8 13 12 1 Energy Gun 2 | . 2 . . . Energy Cannon . | . . . . . Ballistic Gun 13 | . 3 6 3 1 Ballistic Cannon 3 | . . 2 1 . Launcher 12 | . 2 5 5 . Special Weapon 1 | . 1 . . . Impact Weapon 3 | . . . 3 . Slashing Weapon . | . . . . . Piercing Weapon . | . . . . . Special Melee Weapon . | . . . . . Unidentified Prototypes 5 | . . . 5 . Parts Lost 14 | . . 4 7 3 Power 2 | . . 1 1 . Propulsion 4 | . . 1 2 1 Utility 2 | . . 2 . . Weapon 6 | . . . 4 2 Highest Loss Streak 5 | . . 2 5 3 To Critical Strikes 3 | . . . 2 1 Average Slot Usage (%) 91 | . 100 95 68 57 Engine 13 | . 14 14 13 . Treads 18 | . 20 15 16 14 Wheel 9 | . 7 12 8 . Device 10 | . 14 9 2 . Storage 13 | . 14 14 13 14 Ballistic Gun 13 | . 15 20 1 . Launcher 7 | . 9 6 3 . Special Weapon 1 | . 2 . . . Naked Turns . | . . . . . Heaviest Build 94 | 13 90 94 94 . Greatest Support 42 | 40 40 42 42 . Greatest Overweight (x) 5 | . 5 5 5 . Average Overweight (x) 4 | . 4 4 4 . Largest Inventory Capacity 25 | 8 25 25 25 25 Average Capacity 20 | 8 17 25 24 25 Most Carried 25 | 8 24 25 25 15 Average Carried 17 | 4 13 24 20 14 Final Capacity 25 | 8 25 25 25 25 Final Carried 24 | 8 24 24 15 14 Class Distribution -------------------- 100% | Mutant Dominant Class ---------------- Mutant | -10/Materials Mutant | -10/Mines Mutant | -10/Exiles Mutant | -9/Mines Resources | -11 -10 -10 -10 -9 ----------- Run | Yrd Mat Min Exi Min Matter Collected 2201 | 340 577 439 845 . Remotely . | . . . . . Salvage Created 1583 | 331 1039 200 13 . Parts 106 | 27 72 7 . . Haulers Intercepted 2 | . 2 . . . Recyclers Shooed 8 | 1 5 2 . . Parts Field Recycled . | . . . . . Retrieved Matter . | . . . . . Parts Self-Destructed . | . . . . . Prevented . | . . . . . Kills | -11 -10 -10 -10 -9 ------- Run | Yrd Mat Min Exi Min Combat Hostiles Destroyed 30 | . 16 6 8 . Guns 4 | . 2 2 . . AOE 25 | . 14 4 7 . Classes Destroyed 12 | 3 7 2 . . Worker 11 | 4 6 1 . . Builder 6 | . 6 . . . Tunneler 11 | 9 2 . . . Hauler 2 | . 2 . . . Recycler 6 | 1 4 1 . . Mechanic 1 | . 1 . . . Operator 2 | . 2 . . . Watcher 3 | . 3 . . . Swarmer 3 | . 3 . . . Grunt 16 | . 13 3 . . Demolisher 1 | . . 1 . . Assembled 9 | . . 2 7 . Best Kill Streak 8 | 4 8 3 7 . Combat Bots Only 7 | . 6 2 7 . Max Kills in Single Turn 5 | 2 5 1 3 . Gunslinging . | . . . . . Exploded 3 | . 3 1 3 . Melee . | . . . . . Uniques/NPCs Destroyed 1 | . . . 1 . 8R-AWN (-10/Exiles) Combat | -11 -10 -10 -10 -9 -------- Run | Yrd Mat Min Exi Min Hostile Shots Fired 127 | . 38 14 55 20 Missed 30 | . 11 3 14 2 Damage Taken 1902 | . 373 372 873 284 Core 255 | . 83 70 70 32 Absorbed by Shields . | . . . . . Regen/Repaired (Parts) 118 | . 118 . . . Core Remaining (%) 100 | 100 . . . . Volleys Fired 198 | 27 123 23 24 1 Largest 2 | 2 2 2 2 1 Hottest 100 | 60 100 69 69 20 Shots Fired 278 | 54 145 39 39 1 Gun 219 | 54 119 29 16 1 Cannon 8 | . . 2 6 . Launcher 49 | . 24 8 17 . Special 2 | . 2 . . . Kinetic 192 | 27 111 31 22 1 Thermal 10 | . 10 . . . Explosive 49 | . 24 8 17 . Electromagnetic 27 | 27 . . . . Robot Hit Streak 15 | 10 15 7 8 6 Robot Miss Streak 5 | 2 3 2 5 . Penetration Max . | . . . . . Secondary Targets . | . . . . . Shots Hit Robots 177 | 38 88 23 24 4 Core Hits 141 | 19 77 18 27 . Critical Kills . | . . . . . Critical Parts Destroyed . | . . . . . Critical Strikes . | . . . . . Melee Attacks 6 | . . . 2 4 Impact 6 | . . . 2 4 Slashing . | . . . . . Piercing . | . . . . . Sneak Attacks . | . . . . . Combat Hostiles . | . . . . . Follow-up Attacks . | . . . . . Damage Inflicted 4582 | 688 2360 548 923 63 Guns 1456 | 428 678 172 171 7 Cannons 180 | . . 26 154 . Explosions 2858 | 260 1682 350 566 . Melee 88 | . . . 32 56 Ramming . | . . . . . Kinetic 1268 | 148 590 198 325 7 Thermal 719 | 260 459 . . . Explosive 2199 | . 1283 350 566 . Electromagnetic 308 | 280 28 . . . Impact 88 | . . . 32 56 Slashing . | . . . . . Piercing . | . . . . . Highest Corruption 15 | . . 7 7 15 Average Corruption 6 | . . 6 7 8 Corruption Purged . | . . . . . Corruption Blocked . | . . . . . Effects 50 | . . 6 43 1 Message Errors 10 | . . 1 9 . Matter Fused 18 | . . 2 16 . Heat Flow Errors 5 | . . 1 4 . Energy Discharges 8 | . . 1 7 . Parts Fused 2 | . . . 2 . Data Loss (minor) 5 | . . . 4 1 Misfires 1 | . . 1 . . Alerts 1 | . . . 1 . Overload Shots . | . . . . . Overflow Damage 71 | . 58 . 13 . Projectiles . | . . . . . Explosions 71 | . 58 . 13 . Melee . | . . . . . Knockbacks 12 | . . 3 9 . Impact 1 | . . . 1 . Kinetic 11 | . . 3 8 . Secondary . | . . . . . Self-Inflicted Damage 181 | . 75 13 93 . Shots 8 | . 4 1 3 . Rammed . | . . . . . Targets Rammed 1 | . 1 . . . Kicked . | . . . . . Crushed 1 | . 1 . . . Highest Temperature 260 | 40 168 192 260 1 Average Temperature 61 | 20 58 32 113 1 Received Heat Transfer 272 | . 156 38 . 78 Siege Activations . | . . . . . Robots Corrupted . | . . . . . Combat Hostiles . | . . . . . Parts Fried 2 | 2 . . . . Impact Corruptions . | . . . . . Robots Melted . | . . . . . Combat Hostiles . | . . . . . Parts Melted . | . . . . . Heat Transferred 959 | 350 609 . . . Parts Sabotaged . | . . . . . Parts Stolen . | . . . . . Parts Stripped . | . . . . . Power Chain Reactions 5 | 5 . . . . Alert | -11 -10 -10 -10 -9 ------- Run | Yrd Mat Min Exi Min Peak Influence 423 | 70 423 141 . . Initial 136 | . 45 136 . . Average 168 | 43 250 53 . . Maximum Alert Level 2 | . 2 . . . Low Security (%) 58 | 100 29 100 . 100 Level 1 37 | . 64 . . . Level 2 3 | . 6 . . . Level 3 . | . . . . . Level 4 . | . . . . . Level 5 . | . . . . . High Security . | . . . . . Max Security . | . . . . . Squads Dispatched 6 | . 5 1 . . Investigation 4 | . 3 1 . . Extermination . | . . . . . Reinforcement 2 | . 2 . . . Assault . | . . . . . Garrison . | . . . . . Intercept . | . . . . . Searches Triggered . | . . . . . Construction Impeded . | . . . . . Haulers Reinforced . | . . . . . Active Scanning Responses . | . . . . . Cargo Convoy Interrupts . | . . . . . Stealth | -11 -10 -10 -10 -9 --------- Run | Yrd Mat Min Exi Min Distress Signals 1 | . 1 . . . Communications Jammed . | . . . . . Distress Signals . | . . . . . Times Spotted 54 | . 32 7 12 3 Peak Tracking Total 9 | . 4 5 9 3 Tactical Retreats 6 | . 1 1 4 . Traps | -11 -10 -10 -10 -9 ------- Run | Yrd Mat Min Exi Min Traps Triggered 4 | . 3 . 1 . Indirectly . | . . . . . Trap Hack Attempts . | . . . . . Triggered . | . . . . . Disarmed . | . . . . . Reprogrammed . | . . . . . Reused 3 | . . . 3 . Traps Extracted . | . . . . . Installed 5 | . . . 5 . Triggered 1 | . . 1 . . Most Traps Carried 5 | . . 5 5 . Machines | -11 -10 -10 -10 -9 ---------- Run | Yrd Mat Min Exi Min Machines Disabled 9 | . 4 1 4 . Max in Single Turn 3 | . 3 1 1 . Machines Repaired . | . . . . . Machines Dismantled . | . . . . . Machines Sabotaged . | . . . . . Overloaded Fab Kills . | . . . . . Hacking | -11 -10 -10 -10 -9 --------- Run | Yrd Mat Min Exi Min Machines Accessed 12 | . 8 2 2 . Terminals 7 | . 6 1 . . Fabricators . | . . . . . Repair Stations 1 | . 1 . . . Recycling Units 1 | . 1 . . . Scanalyzers . | . . . . . Garrison Access . | . . . . . Total Hacks 42 | . 21 4 17 . Successful 31 | . 12 2 17 . Failed 10 | . 8 2 . . Catastrophic . | . . . . . Database Lockouts 1 | . 1 . . . Manual 17 | . 13 3 1 . Terminals 19 | . 16 3 . . Fabricators . | . . . . . Repair Stations 4 | . 4 . . . Recycling Units 1 | . 1 . . . Scanalyzers . | . . . . . Garrison Access . | . . . . . Terminal Hacks 23 | . 4 2 17 . Record 18 | . 1 . 17 . Robot Analysis 3 | . 2 1 . . Open Door 1 | . . 1 . . Alert Level 1 | . 1 . . . Fabricator Hacks . | . . . . . Repair Station Hacks 4 | . 4 . . . Scan Component 2 | . 2 . . . Repair 2 | . 2 . . . Recycling Unit Hacks . | . . . . . Scanalyzer . | . . . . . Garrison Access Hacks . | . . . . . Unauthorized Hacks 4 | . 4 . . . Terminals 3 | . 3 . . . Botnet 3 | . 3 . . . Fabricators . | . . . . . Repair Stations . | . . . . . Recycling Units 1 | . 1 . . . Reject 1 | . 1 . . . Scanalyzers . | . . . . . Garrison Access . | . . . . . Data Cores Recovered . | . . . . . Used . | . . . . . Hacking Detections 7 | . 6 1 . . Full Trace Events 1 | . 1 . . . Feedback Events . | . . . . . Feedback Blocked . | . . . . . Robot Schematics Acquired . | . . . . . Robots Built . | . . . . . Authchips . | . . . . . Time . | . . . . . Total Robot Build Rating . | . . . . . Part Schematics Acquired . | . . . . . Parts Built . | . . . . . Authchips . | . . . . . Time . | . . . . . Total Part Build Rating . | . . . . . Parts Repaired 2 | . 2 . . . Time 52 | . 52 . . . Parts Recycled . | . . . . . Recycled Matter . | . . . . . Retrieved Matter . | . . . . . Retrieved Components . | . . . . . Parts Scanalyzed . | . . . . . Part Schematics Acquired . | . . . . . Parts Damaged . | . . . . . Bothacking | -11 -10 -10 -10 -9 ------------ Run | Yrd Mat Min Exi Min Used RIF Installer . | . . . . . Robots Hacked . | . . . . . Non-combat . | . . . . . Combat . | . . . . . Robot Hacks Applied . | . . . . . Relay Couplers Released . | . . . . . Fabnet Peak Effective % . | . . . . . Robots Rewired . | . . . . . Allies Hacked . | . . . . . Hacks Repelled . | . . . . . Allies | -11 -10 -10 -10 -9 -------- Run | Yrd Mat Min Exi Min Total Allies . | . . . . . Largest Group . | . . . . . Highest-Rated Group . | . . . . . Highest-Rated Ally . | . . . . . Total Orders . | . . . . . Ally Attacks 4 | . . . 4 . Total Damage 196 | . . . 196 . Kills . | . . . . . Allies Corrupted . | . . . . . Allies Melted . | . . . . . Turrets Deployed 3 | . . . 3 . Intel | -11 -10 -10 -10 -9 ------- Run | Yrd Mat Min Exi Min Robot Analysis Total 3 | . 2 1 . . Derelict Logs Recovered 2 | . . 2 . . Drone Launches . | . . . . . Drone Recoveries . | . . . . . Exploration | -11 -10 -10 -10 -9 ------------- Run | Yrd Mat Min Exi Min Turns Passed 6223 | 386 2900 1609 1312 16 Spaces Moved 2335 | 124 938 694 579 . Core . | . . . . . Treads 369 | 124 184 8 53 . Legs 79 | . . . 79 . Wheels 1887 | . 754 686 447 . Hover . | . . . . . Flight . | . . . . . Fastest Speed 160 | 160 160 175 160 . Average Speed 178 | 160 172 176 194 . Slowest Speed 480 | 160 175 480 320 . Overloaded Moves . | . . . . . Propulsion Burnouts . | . . . . . Robots Hopped . | . . . . . Cave-ins Triggered . | . . . . . Exploration Rate (%) 58 | 4 95 97 91 3 Regions Visited 4 Branch Regions 3 Pre-discovered Areas 2 | . . 2 . . Known Exits Taken . | . . . . . Unknown Exits Taken 4 | 1 1 1 1 . Scrap Searched 3 | . . 3 . . Spaces Dug 17 | . 16 . 1 . Terrain Destroyed 179 | 13 102 26 38 . Melee 1 | . . . 1 . Projectile 2 | . 2 . . . AOE 176 | 13 100 26 37 . Terrain Rammed . | . . . . . Walls Destroyed . | . . . . . Machines Disabled . | . . . . . Actions | -11 -10 -10 -10 -9 --------- Run | Yrd Mat Min Exi Min Total 4142 | 264 2094 1042 734 8 Wait 1415 | 104 979 271 59 2 Move 2331 | 123 937 693 578 . Hop . | . . . . . Pick Up 65 | 5 26 15 19 . Fast Attach 9 | . 1 4 4 . Attach 16 | . 3 3 9 1 Detach 4 | . . . 4 . Swap 43 | 2 15 18 8 . Drop 49 | 3 9 15 22 . Fire 198 | 27 123 23 24 1 Melee 6 | . . . 2 4 Ram . | . . . . . Kick . | . . . . . Crush 1 | . 1 . . . Escape Stasis . | . . . . . Rewire . | . . . . . Trap 5 | . . . 5 . Miscellaneous . | . . . . . Route ------- -11/Scrapyard -10/Materials (discovered 4 exits: [*Mat x3] / *Min) -10/Mines (discovered 3 exits: [*Mat x2] / *Exi) -10/Exiles -9/Mines History --------- Turn | Location | Event 11 | -11/Scrapyard | Discovered new exit (range 2) 387 | -11/Scrapyard | Entered Materials 419 | -10/Materials | Build established: Mutant 1986 | -10/Materials | Discovered new exit (range 15) 2357 | -10/Materials | Discovered new exit (range 15) 2387 | -10/Materials | Central database locked down 2601 | -10/Materials | Discovered new exit (range 14) 2720 | -10/Materials | Discovered new exit (range 16) 3080 | -10/Materials | Repaired Grenade Launcher 3108 | -10/Materials | Repaired Lgt. Treads 3287 | -10/Materials | Entered Mines 3653 | -10/Mines | Discovered new exit (range 10) 3676 | -10/Mines | Found a hidden stash of uninstalled traps 3716 | -10/Mines | Learned location of Storage (-7) 3933 | -10/Mines | Met a Derelict shopkeep closing up shop 4103 | -10/Mines | Discovered new exit (range 5) 4139 | -10/Mines | Assembled infested the area 4161 | -10/Mines | Core integrity fell below 50% 4163 | -10/Mines | Received a Rocket Launcher from a helpful Derelict 4473 | -10/Mines | Discovered new exit (range 5) 4896 | -10/Mines | Entered Exiles 4942 | -10/Exiles | Met 8R-AWN 4971 | -10/Exiles | Met EX-HEX 5026 | -10/Exiles | Met EX-BIN 5045 | -10/Exiles | Aligned with FarCom system 5047 | -10/Exiles | Given EX-Vault access code 5136 | -10/Exiles | Opened EX-Vault 5143 | -10/Exiles | Found Prototype Device 5143 | -10/Exiles | Identified PSU Rigger 5147 | -10/Exiles | Found Prototype Device 5147 | -10/Exiles | Identified Skeleton Box 5157 | -10/Exiles | Found Deploy-a-Sentry 5160 | -10/Exiles | Found Deploy-a-Sentry 5173 | -10/Exiles | Found Deploy-a-Sentry 5211 | -10/Exiles | Warned to stay clear of 0b10 Research branches 5260 | -10/Exiles | Met EX-DEC 5403 | -10/Exiles | Visited The Gauntlet 5648 | -10/Exiles | Discovered new exit (range 14) 5690 | -10/Exiles | Warned about trapping Exiles lab 5694 | -10/Exiles | Attacked by the Exiles 5742 | -10/Exiles | Destroyed 7 combat bots 5788 | -10/Exiles | DAS Turret deployed 5792 | -10/Exiles | DAS Turret deployed 5795 | -10/Exiles | DAS Turret deployed 5857 | -10/Exiles | Core integrity fell below 20% 5877 | -10/Exiles | Destroyed 8R-AWN 5891 | -10/Exiles | Lost 5 parts (2n3w) 5938 | -10/Exiles | Found Prototype Device 5963 | -10/Exiles | Identified AS-neutralizer No. 17b 6208 | -10/Exiles | Stole two prototypes: Skeleton Box, PSU Rigger 6208 | -10/Exiles | Entered Mines 6221 | -9/Mines | System corruption reached 10% 6224 | -9/Mines | Destroyed by G-34 Mercenary with Small Laser Last Messages --------------- 06134_ Massive razor-sharp blades shoot up from within the floor. 06134_ Hammer severed. 06137_ Acquired Hammer. 06146_ System corrupted: Matter fused (-7). 06169_ System corrupted: Energy discharge (-22). 06191_ System corrupted: Energy discharge (-27). 06193_ Dropped Lrg. Matter Pod. 06194_ Extracted 150 matter. 06194_ Acquired Lrg. Matter Pod. LOCATION=UNKNOWN GOAL=ESCAPE 06220_ Lgt. Treads destroyed. 06220_ Critical hit (Smash). 06220_ Hammer destroyed. 06220_ System corrupted by crushing effect (+3). 06223_ Lgt. Assault Rifle destroyed. 06223_ System corrupted by crushing effect (+5). 06223_ Knocked back. 06224_ System corrupted: Component data lost. Map ----- +----------------------------------------------------+ | ????????????????????????????????????????? | | ????????????????????????????????????????? | | ????????????????????????????????????????? | | ????????????????????????????????????????? | | ????????????????????????????????????????? | | ????????????????????????????????????????? | | ????????????????????????????????????????? | | ????????????????????????????????????????? | | ????????????????????????????????????????? | | ????????????????????????????????????????? | | ????????????????????????????????????????? | | ????????????????????????????????????????? | | ????????????????????????????????????????? | | ????????????????????????????????????????? | | ????????????????????????????????????????? | | ????????????????????????????????????????? | | ????????????????????????????????????????? | | ????????????????????????????????????????? | | ????????????????????????????????????????? | | ????????????????????????????????????????? | | ????????????????????????????????????????? | | ????????????????????????????????????????? | | ????????????????????????????????????????? | | ??????????????###########???????????????? | | ??????????????# #???????????????? | | ??????????????# @ """ #???????????????? | | ??????????????# """ #???????????????? | | ??????????# b """ #???????????????? | | ??????????##### g g #???????????????? | | ??????????????# #???????????????? | | ??????????????###########???????????????? | | ????????????????????????????????????????? | | ????????????????????????????????????????? | | ????????????????????????????????????????? | | | | | | | | | | | | | | | | | | | | | | | | | | | | | | | | | +----------------------------------------------------+ Best States ------------- Heat Dissipation 25 Energy Generation 14 Energy Capacity 250 Matter Stores 300 Matter Capacity 300 Sight Range 16 Robot Scan Range 14 Terrain Scan Range 16 Terrain Scan Density 10 Evasion (%) 40 Recoil Reduction 2 Item Schematics ----------------- None Robot Schematics ------------------ None Fabricated ------------ Nothing Alien Tech Used ----------------- None Achievements -------------- None Challenges ------------ None Game ------ Seed EtherialPiercingMediator Manual? 0 Play Time 01:00:50 Cumulative 428.9 hours Start 2024.04.27 @ 23:23:45 End 2024.04.28 @ 00:37:15 Sessions 2 Manual Loads 0 Difficulty Rogue Special Mode None Game No. 194 Rogue 194 Adventurer 0 Explorer 0 Win Type - Total 9 Types 5/1/0/1/2/0/0/0/0 Lore% 63 Gallery% 78 Achievement% 71 Wizard Run 0 Options --------- Layout 1 ASCII 0 Keyboard 0 Movement Mouse Keybinds 0 Fullscreen 0 Font 20/SmallcapsGlow Map View 50x35 Zoom Use 0% Tactical HUD 1 Map Filters NONE Filters NONE Steam 1 RUN: 6353972a-6a56-42cb-9354-975b8b08dadf